[Event "Titled Tuesday Blitz May 03 Late 2022"]
[White "Petrova, Irina"]
[Black "Gurevich, Dmitry"]
[WhiteFideId "14124122"]
[BlackFideId "2000407"]
[WhiteElo "1993"]
[BlackElo "2506"]
[Result "1/2-1/2"]
[Round "06"]
[TimeControl "180+1"]
[Date "2022.05.03"]
[WhiteClock "0:01:14"]
[BlackClock "0:01:28"]

1. e4 {[%clk 0:03:00]}  c5 {[%clk 0:02:58]} 2. Nf3 {[%clk 0:03:00]}  d6 {[%clk 0:02:59]} 3. Bb5+ {[%clk 0:02:59]}  Bd7 {[%clk 0:02:58]} 4. Bxd7+ {[%clk 0:02:59]}  Qxd7 {[%clk 0:02:59]} 5. O-O {[%clk 0:02:57]}  Nc6 {[%clk 0:02:58]} 6. c3 {[%clk 0:02:57]}  Nf6 {[%clk 0:02:58]} 7. Re1 {[%clk 0:02:57]}  e6 {[%clk 0:02:59]} 8. d4 {[%clk 0:02:57]}  cxd4 {[%clk 0:02:59]} 9. cxd4 {[%clk 0:02:58]}  d5 {[%clk 0:02:59]} 10. e5 {[%clk 0:02:57]}  Ne4 {[%clk 0:02:59]} 11. Nbd2 {[%clk 0:02:57]}  Nxd2 {[%clk 0:03:00]} 12. Bxd2 {[%clk 0:02:58]}  Be7 {[%clk 0:02:59]} 13. Rc1 {[%clk 0:02:57]}  O-O {[%clk 0:02:59]} 14. a3 {[%clk 0:02:56]}  Rac8 {[%clk 0:02:59]} 15. Rc3 {[%clk 0:02:56]}  b6 {[%clk 0:02:58]} 16. h4 {[%clk 0:02:52]}  Na5 {[%clk 0:02:55]} 17. Rd3 {[%clk 0:02:50]}  Qb5 {[%clk 0:02:45]} 18. Bc3 {[%clk 0:02:40]}  h6 {[%clk 0:02:37]} 19. h5 {[%clk 0:02:37]}  Rc7 {[%clk 0:02:28]} 20. Nh2 {[%clk 0:02:37]}  Rfc8 {[%clk 0:02:23]} 21. Rg3 {[%clk 0:02:36]}  Kh8 {[%clk 0:02:20]} 22. Qg4 {[%clk 0:02:26]}  Rg8 {[%clk 0:02:16]} 23. Qf4 {[%clk 0:02:24]}  Bg5 {[%clk 0:02:14]} 24. Qg4 {[%clk 0:02:20]}  Nc4 {[%clk 0:02:08]} 25. f4 {[%clk 0:02:17]}  Be7 {[%clk 0:02:06]} 26. f5 {[%clk 0:02:05]}  Bg5 {[%clk 0:02:06]} 27. fxe6 {[%clk 0:02:03]}  fxe6 {[%clk 0:02:03]} 28. Qxe6 {[%clk 0:02:01]}  Nxb2 {[%clk 0:02:01]} 29. Bxb2 {[%clk 0:01:55]}  Qxb2 {[%clk 0:02:00]} 30. Qxd5 {[%clk 0:01:53]}  Rc1 {[%clk 0:01:49]} 31. Rxc1 {[%clk 0:01:44]}  Qxc1+ {[%clk 0:01:48]} 32. Nf1 {[%clk 0:01:44]}  Rf8 {[%clk 0:01:46]} 33. Qb5 {[%clk 0:01:35]}  Be3+ {[%clk 0:01:43]} 34. Rxe3 {[%clk 0:01:31]}  Rxf1+ {[%clk 0:01:40]} 35. Qxf1 {[%clk 0:01:32]}  Qxe3+ {[%clk 0:01:40]} 36. Qf2 {[%clk 0:01:31]}  Qxa3 {[%clk 0:01:37]} 37. e6 {[%clk 0:01:26]}  Qc1+ {[%clk 0:01:30]} 38. Kh2 {[%clk 0:01:23]}  Qg5 {[%clk 0:01:30]} 39. Qf7 {[%clk 0:01:22]}  Qh4+ {[%clk 0:01:29]} 40. Kg1 {[%clk 0:01:22]}  Qe1+ {[%clk 0:01:29]} 41. Kh2 {[%clk 0:01:20]}  Qh4+ {[%clk 0:01:29]} 42. Kg1 {[%clk 0:01:14]}  Qe1+ {[%clk 0:01:28]} 43. Kh2 {[%clk 0:01:14]}  Qh4+ {[%clk 0:01:28]} 1/2-1/2


[Site "https://www.chess.com"]

[Event "Titled Tuesday Blitz May 03 Late 2022"]
[White "Petrovic, Aleksa"]
[Black "Hoffmann, Asa"]
[WhiteFideId "967629"]
[BlackFideId "2001470"]
[WhiteElo "2198"]
[BlackElo "2117"]
[Result "1-0"]
[Round "06"]
[TimeControl "180+1"]
[Date "2022.05.03"]
[WhiteClock "0:00:11"]
[BlackClock "0:00:32"]

1. d4 {[%clk 0:03:00]}  Nf6 {[%clk 0:02:59]} 2. c4 {[%clk 0:03:00]}  c5 {[%clk 0:02:54]} 3. d5 {[%clk 0:03:00]}  e5 {[%clk 0:02:49]} 4. Nc3 {[%clk 0:02:59]}  d6 {[%clk 0:02:48]} 5. e4 {[%clk 0:02:59]}  Be7 {[%clk 0:02:47]} 6. Nf3 {[%clk 0:02:57]}  Nbd7 {[%clk 0:02:46]} 7. Be2 {[%clk 0:02:56]}  Nf8 {[%clk 0:02:46]} 8. O-O {[%clk 0:02:56]}  Ng6 {[%clk 0:02:46]} 9. Ne1 {[%clk 0:02:53]}  O-O {[%clk 0:02:45]} 10. Nd3 {[%clk 0:02:53]}  a6 {[%clk 0:02:45]} 11. a4 {[%clk 0:02:52]}  b6 {[%clk 0:02:45]} 12. Bd2 {[%clk 0:02:48]}  Ne8 {[%clk 0:02:44]} 13. Bg4 {[%clk 0:02:44]}  Bg5 {[%clk 0:02:43]} 14. Be1 {[%clk 0:02:42]}  Nf6 {[%clk 0:02:36]} 15. h3 {[%clk 0:02:19]}  Nxg4 {[%clk 0:02:27]} 16. hxg4 {[%clk 0:02:20]}  Qd7 {[%clk 0:02:26]} 17. f3 {[%clk 0:02:19]}  Be3+ {[%clk 0:02:25]} 18. Bf2 {[%clk 0:02:18]}  Bd4 {[%clk 0:02:25]} 19. Ne2 {[%clk 0:02:15]}  Qe7 {[%clk 0:02:15]} 20. Ng3 {[%clk 0:02:12]}  Bd7 {[%clk 0:02:14]} 21. Nf5 {[%clk 0:02:11]}  Bxf5 {[%clk 0:02:14]} 22. exf5 {[%clk 0:02:05]}  Nh8 {[%clk 0:02:04]} 23. Qe2 {[%clk 0:01:51]}  f6 {[%clk 0:02:02]} 24. Nf4 {[%clk 0:01:48]}  Nf7 {[%clk 0:01:55]} 25. Ne6 {[%clk 0:01:47]}  Ng5 {[%clk 0:01:52]} 26. Nxf8 {[%clk 0:01:43]}  Rxf8 {[%clk 0:01:48]} 27. f4 {[%clk 0:01:35]}  Nf7 {[%clk 0:01:46]} 28. Bxd4 {[%clk 0:01:33]}  cxd4 {[%clk 0:01:45]} 29. Qe4 {[%clk 0:01:18]}  Qc7 {[%clk 0:01:44]} 30. b3 {[%clk 0:01:09]}  Re8 {[%clk 0:01:42]} 31. Kh2 {[%clk 0:01:08]}  Kf8 {[%clk 0:01:41]} 32. Kg3 {[%clk 0:01:04]}  exf4+ {[%clk 0:01:35]} 33. Qxf4 {[%clk 0:01:04]}  Re3+ {[%clk 0:01:29]} 34. Rf3 {[%clk 0:01:03]}  Qe7 {[%clk 0:01:24]} 35. Rxe3 {[%clk 0:01:00]}  dxe3 {[%clk 0:01:24]} 36. Re1 {[%clk 0:00:55]}  e2 {[%clk 0:01:23]} 37. Kf2 {[%clk 0:00:53]}  Ne5 {[%clk 0:01:20]} 38. Qe4 {[%clk 0:00:43]}  Qc7 {[%clk 0:01:16]} 39. Rxe2 {[%clk 0:00:42]}  Qc5+ {[%clk 0:01:15]} 40. Kg3 {[%clk 0:00:41]}  Qg1 {[%clk 0:01:13]} 41. Qe3 {[%clk 0:00:38]}  Qb1 {[%clk 0:01:01]} 42. Qxb6 {[%clk 0:00:30]}  Kf7 {[%clk 0:00:46]} 43. Qa7+ {[%clk 0:00:26]}  Kg8 {[%clk 0:00:44]} 44. Qb8+ {[%clk 0:00:23]}  Kf7 {[%clk 0:00:44]} 45. Qc7+ {[%clk 0:00:22]}  Kg8 {[%clk 0:00:42]} 46. Qc8+ {[%clk 0:00:20]}  Kf7 {[%clk 0:00:41]} 47. Qe6+ {[%clk 0:00:20]}  Kf8 {[%clk 0:00:41]} 48. Qxd6+ {[%clk 0:00:21]}  Kf7 {[%clk 0:00:41]} 49. Qc7+ {[%clk 0:00:20]}  Kf8 {[%clk 0:00:40]} 50. Qc5+ {[%clk 0:00:18]}  Kf7 {[%clk 0:00:40]} 51. Rxe5 {[%clk 0:00:14]}  fxe5 {[%clk 0:00:38]} 52. Qc7+ {[%clk 0:00:14]}  Kf6 {[%clk 0:00:37]} 53. Qd6+ {[%clk 0:00:14]}  Kg5 {[%clk 0:00:36]} 54. Qe7+ {[%clk 0:00:11]}  Kh6 {[%clk 0:00:32]} 55. Qh4# {[%clk 0:00:11]} 1-0


[Site "https://www.chess.com"]

[Event "Titled Tuesday Blitz May 03 Late 2022"]
[White "Piesik, Piotr"]
[Black "Winkels, Marcel"]
[WhiteFideId "1136194"]
[BlackFideId "1003887"]
[WhiteElo "2190"]
[BlackElo "1900"]
[Result "1-0"]
[Round "06"]
[TimeControl "180+1"]
[Date "2022.05.03"]
[WhiteClock "0:01:17"]
[BlackClock "0:00:14"]

1. Nf3 {[%clk 0:03:00]}  d5 {[%clk 0:02:54]} 2. g3 {[%clk 0:03:00]}  Nc6 {[%clk 0:02:52]} 3. Bg2 {[%clk 0:03:00]}  Bg4 {[%clk 0:02:49]} 4. O-O {[%clk 0:02:59]}  h5 {[%clk 0:02:48]} 5. h3 {[%clk 0:02:59]}  Bf5 {[%clk 0:02:46]} 6. d3 {[%clk 0:02:59]}  Qd7 {[%clk 0:02:45]} 7. Kh2 {[%clk 0:02:59]}  O-O-O {[%clk 0:02:42]} 8. Nbd2 {[%clk 0:02:57]}  Nf6 {[%clk 0:02:29]} 9. Ng5 {[%clk 0:02:53]}  e6 {[%clk 0:02:23]} 10. e4 {[%clk 0:02:52]}  Bg6 {[%clk 0:02:18]} 11. c3 {[%clk 0:02:45]}  Be7 {[%clk 0:02:09]} 12. Nb3 {[%clk 0:02:30]}  dxe4 {[%clk 0:02:07]} 13. d4 {[%clk 0:02:24]}  Na5 {[%clk 0:01:51]} 14. Nxa5 {[%clk 0:02:20]}  Qb5 {[%clk 0:01:49]} 15. Nb3 {[%clk 0:02:17]}  Qf5 {[%clk 0:01:40]} 16. Qe2 {[%clk 0:02:09]}  Ng4+ {[%clk 0:01:39]} 17. hxg4 {[%clk 0:02:08]}  hxg4+ {[%clk 0:01:38]} 18. Kg1 {[%clk 0:02:09]}  Bxg5 {[%clk 0:01:38]} 19. Re1 {[%clk 0:02:05]}  Bxc1 {[%clk 0:01:19]} 20. Raxc1 {[%clk 0:02:06]}  Qh5 {[%clk 0:01:18]} 21. Qe3 {[%clk 0:02:02]}  Qh2+ {[%clk 0:01:13]} 22. Kf1 {[%clk 0:02:02]}  f5 {[%clk 0:01:06]} 23. Nc5 {[%clk 0:02:01]}  Bf7 {[%clk 0:01:01]} 24. Bxe4 {[%clk 0:01:52]}  fxe4 {[%clk 0:00:56]} 25. Qxe4 {[%clk 0:01:53]}  Qh1+ {[%clk 0:00:55]} 26. Qxh1 {[%clk 0:01:51]}  Rxh1+ {[%clk 0:00:54]} 27. Kg2 {[%clk 0:01:47]}  Rxe1 {[%clk 0:00:43]} 28. Rxe1 {[%clk 0:01:48]}  b6 {[%clk 0:00:38]} 29. Nd3 {[%clk 0:01:46]}  Kd7 {[%clk 0:00:36]} 30. Ne5+ {[%clk 0:01:45]}  Ke8 {[%clk 0:00:33]} 31. Nxg4 {[%clk 0:01:45]}  Kf8 {[%clk 0:00:29]} 32. Ne5 {[%clk 0:01:44]}  Bg8 {[%clk 0:00:29]} 33. Nc6 {[%clk 0:01:40]}  Ra8 {[%clk 0:00:22]} 34. b4 {[%clk 0:01:40]}  a5 {[%clk 0:00:21]} 35. bxa5 {[%clk 0:01:36]}  bxa5 {[%clk 0:00:21]} 36. Re5 {[%clk 0:01:27]}  Ra6 {[%clk 0:00:17]} 37. Nxa5 {[%clk 0:01:26]}  Ke7 {[%clk 0:00:16]} 38. Rc5 {[%clk 0:01:24]}  Kd6 {[%clk 0:00:16]} 39. Nc4+ {[%clk 0:01:23]}  Kd7 {[%clk 0:00:15]} 40. Ra5 {[%clk 0:01:19]}  Rc6 {[%clk 0:00:14]} 41. Ne5+ {[%clk 0:01:19]}  Kd6 {[%clk 0:00:13]} 42. Nxc6 {[%clk 0:01:19]}  Kxc6 {[%clk 0:00:14]} 43. Rg5 {[%clk 0:01:17]} 1-0


[Site "https://www.chess.com"]

[Event "Titled Tuesday Blitz May 03 Late 2022"]
[White "Rasulov, Vugar"]
[Black "Melkumyan, Hrant"]
[WhiteFideId "13402390"]
[BlackFideId "13302485"]
[WhiteElo "2560"]
[BlackElo "2604"]
[Result "1-0"]
[Round "06"]
[TimeControl "180+1"]
[Date "2022.05.03"]
[WhiteClock "0:00:08"]
[BlackClock "0:00:01"]

1. d4 {[%clk 0:03:00]}  d5 {[%clk 0:02:59]} 2. c4 {[%clk 0:03:01]}  e6 {[%clk 0:02:59]} 3. Nf3 {[%clk 0:03:01]}  Nf6 {[%clk 0:02:59]} 4. Nc3 {[%clk 0:03:02]}  Be7 {[%clk 0:02:59]} 5. Bg5 {[%clk 0:02:59]}  Nbd7 {[%clk 0:02:59]} 6. e3 {[%clk 0:02:59]}  h6 {[%clk 0:02:59]} 7. Bh4 {[%clk 0:02:58]}  O-O {[%clk 0:02:59]} 8. Rc1 {[%clk 0:02:56]}  c5 {[%clk 0:02:56]} 9. cxd5 {[%clk 0:02:49]}  Nxd5 {[%clk 0:02:52]} 10. Bxe7 {[%clk 0:02:49]}  Nxe7 {[%clk 0:02:52]} 11. Bd3 {[%clk 0:02:48]}  b6 {[%clk 0:02:50]} 12. O-O {[%clk 0:02:39]}  Bb7 {[%clk 0:02:50]} 13. Be4 {[%clk 0:02:38]}  Qb8 {[%clk 0:02:42]} 14. Qa4 {[%clk 0:02:34]}  Rd8 {[%clk 0:02:41]} 15. Rfd1 {[%clk 0:02:32]}  cxd4 {[%clk 0:02:37]} 16. Qxd4 {[%clk 0:02:21]}  Nc5 {[%clk 0:02:24]} 17. Qxd8+ {[%clk 0:02:21]}  Qxd8 {[%clk 0:02:25]} 18. Rxd8+ {[%clk 0:02:21]}  Rxd8 {[%clk 0:02:26]} 19. Bxb7 {[%clk 0:02:22]}  Nxb7 {[%clk 0:02:27]} 20. Kf1 {[%clk 0:02:20]}  Nc5 {[%clk 0:02:26]} 21. Ke2 {[%clk 0:02:19]}  a5 {[%clk 0:02:23]} 22. Nd4 {[%clk 0:02:15]}  Kf8 {[%clk 0:02:20]} 23. Rd1 {[%clk 0:02:06]}  Nd5 {[%clk 0:02:05]} 24. Nxd5 {[%clk 0:01:55]}  Rxd5 {[%clk 0:02:04]} 25. Rc1 {[%clk 0:01:56]}  Ke8 {[%clk 0:02:00]} 26. f3 {[%clk 0:01:50]}  f5 {[%clk 0:01:58]} 27. Rc4 {[%clk 0:01:45]}  Kd7 {[%clk 0:01:56]} 28. a3 {[%clk 0:01:31]}  a4 {[%clk 0:01:52]} 29. Rb4 {[%clk 0:01:29]}  Rd6 {[%clk 0:01:25]} 30. Nb5 {[%clk 0:01:29]}  Rc6 {[%clk 0:01:25]} 31. Nc3 {[%clk 0:01:29]}  Ke7 {[%clk 0:01:20]} 32. g4 {[%clk 0:01:23]}  Kf6 {[%clk 0:01:08]} 33. gxf5 {[%clk 0:01:20]}  Kxf5 {[%clk 0:01:09]} 34. Rc4 {[%clk 0:01:17]}  Rd6 {[%clk 0:01:01]} 35. Nxa4 {[%clk 0:01:14]}  Nxa4 {[%clk 0:01:02]} 36. Rxa4 {[%clk 0:01:14]}  g5 {[%clk 0:01:03]} 37. Rb4 {[%clk 0:01:14]}  h5 {[%clk 0:01:03]} 38. a4 {[%clk 0:01:14]}  e5 {[%clk 0:01:03]} 39. Rb3 {[%clk 0:01:02]}  Rc6 {[%clk 0:00:53]} 40. Rc3 {[%clk 0:01:00]}  Rd6 {[%clk 0:00:53]} 41. Rc8 {[%clk 0:00:59]}  e4 {[%clk 0:00:47]} 42. Rf8+ {[%clk 0:00:58]}  Kg6 {[%clk 0:00:48]} 43. fxe4 {[%clk 0:00:51]}  Rc6 {[%clk 0:00:48]} 44. Kd3 {[%clk 0:00:33]}  Rd6+ {[%clk 0:00:48]} 45. Kc3 {[%clk 0:00:31]}  Rc6+ {[%clk 0:00:47]} 46. Kd2 {[%clk 0:00:26]}  Rd6+ {[%clk 0:00:47]} 47. Ke1 {[%clk 0:00:27]}  Re6 {[%clk 0:00:44]} 48. Rb8 {[%clk 0:00:25]}  g4 {[%clk 0:00:39]} 49. Kf2 {[%clk 0:00:22]}  Kg5 {[%clk 0:00:40]} 50. b4 {[%clk 0:00:22]}  Kh4 {[%clk 0:00:38]} 51. Kg2 {[%clk 0:00:16]}  Rxe4 {[%clk 0:00:35]} 52. Rxb6 {[%clk 0:00:17]}  Rxe3 {[%clk 0:00:36]} 53. a5 {[%clk 0:00:17]}  Re2+ {[%clk 0:00:36]} 54. Kg1 {[%clk 0:00:14]}  Kh3 {[%clk 0:00:36]} 55. a6 {[%clk 0:00:15]}  Rg2+ {[%clk 0:00:36]} 56. Kf1 {[%clk 0:00:15]}  Ra2 {[%clk 0:00:37]} 57. Rb5 {[%clk 0:00:12]}  Ra1+ {[%clk 0:00:24]} 58. Kf2 {[%clk 0:00:12]}  Ra2+ {[%clk 0:00:24]} 59. Kf1 {[%clk 0:00:11]}  Ra1+ {[%clk 0:00:24]} 60. Ke2 {[%clk 0:00:10]}  Rxa6 {[%clk 0:00:19]} 61. Rxh5+ {[%clk 0:00:10]}  Kg2 {[%clk 0:00:20]} 62. Kd3 {[%clk 0:00:10]}  Rc6 {[%clk 0:00:07]} 63. b5 {[%clk 0:00:10]}  Rc1 {[%clk 0:00:07]} 64. Kd4 {[%clk 0:00:10]}  Rb1 {[%clk 0:00:03]} 65. Kc5 {[%clk 0:00:07]}  Rc1+ {[%clk 0:00:03]} 66. Kd6 {[%clk 0:00:08]}  Rb1 {[%clk 0:00:04]} 67. Kc6 {[%clk 0:00:08]}  Rc1+ {[%clk 0:00:05]} 68. Rc5 {[%clk 0:00:08]}  Rb1 {[%clk 0:00:05]} 69. Rc2+ {[%clk 0:00:08]}  Kh3 {[%clk 0:00:02]} 70. b6 {[%clk 0:00:09]}  Rb3 {[%clk 0:00:01]} 71. b7 {[%clk 0:00:08]}  Rb4 {[%clk 0:00:01]} 72. Kc7 {[%clk 0:00:08]} 1-0


[Site "https://www.chess.com"]

[Event "Titled Tuesday Blitz May 03 Late 2022"]
[White "Rytenko, Vsevolod"]
[Black "Hakobyan, Aram"]
[WhiteFideId "14133040"]
[BlackFideId "13306677"]
[WhiteElo "2120"]
[BlackElo "2557"]
[Result "0-1"]
[Round "06"]
[TimeControl "180+1"]
[Date "2022.05.03"]
[WhiteClock "0:00:01"]
[BlackClock "0:01:51"]

1. e4 {[%clk 0:03:00]}  c5 {[%clk 0:02:56]} 2. Nf3 {[%clk 0:03:01]}  Nc6 {[%clk 0:02:56]} 3. Bb5 {[%clk 0:03:01]}  g6 {[%clk 0:02:55]} 4. O-O {[%clk 0:03:01]}  Bg7 {[%clk 0:02:54]} 5. Re1 {[%clk 0:03:01]}  e5 {[%clk 0:02:53]} 6. c3 {[%clk 0:02:59]}  Nge7 {[%clk 0:02:52]} 7. d4 {[%clk 0:02:59]}  exd4 {[%clk 0:02:51]} 8. cxd4 {[%clk 0:03:00]}  cxd4 {[%clk 0:02:52]} 9. Bf4 {[%clk 0:02:53]}  a6 {[%clk 0:02:52]} 10. Bc4 {[%clk 0:02:48]}  b5 {[%clk 0:02:50]} 11. Bd5 {[%clk 0:02:48]}  O-O {[%clk 0:02:43]} 12. Bd6 {[%clk 0:02:46]}  Bb7 {[%clk 0:02:42]} 13. Na3 {[%clk 0:02:31]}  Na5 {[%clk 0:02:41]} 14. Nxd4 {[%clk 0:02:13]}  Bxd5 {[%clk 0:02:38]} 15. exd5 {[%clk 0:02:11]}  Re8 {[%clk 0:02:39]} 16. Bb4 {[%clk 0:00:58]}  Nb7 {[%clk 0:02:30]} 17. d6 {[%clk 0:00:47]}  Nd5 {[%clk 0:02:29]} 18. Ndxb5 {[%clk 0:00:21]}  Nxb4 {[%clk 0:02:00]} 19. Rxe8+ {[%clk 0:00:21]}  Qxe8 {[%clk 0:02:01]} 20. Nc7 {[%clk 0:00:21]}  Qf8 {[%clk 0:02:01]} 21. Nxa8 {[%clk 0:00:21]}  Qxa8 {[%clk 0:02:02]} 22. Nc4 {[%clk 0:00:15]}  Nc6 {[%clk 0:02:02]} 23. Rc1 {[%clk 0:00:14]}  Qe8 {[%clk 0:01:58]} 24. Qd5 {[%clk 0:00:14]}  Qe2 {[%clk 0:01:56]} 25. g3 {[%clk 0:00:14]}  Bd4 {[%clk 0:01:52]} 26. Rf1 {[%clk 0:00:13]}  Nc5 {[%clk 0:01:52]} 27. b4 {[%clk 0:00:11]}  Nd3 {[%clk 0:01:52]} 28. Qg2 {[%clk 0:00:04]}  Nxf2 {[%clk 0:01:50]} 29. Rxf2 {[%clk 0:00:01]}  Qxc4 {[%clk 0:01:51]} 0-1


[Site "https://www.chess.com"]

[Event "Titled Tuesday Blitz May 03 Late 2022"]
[White "Sanchez Alvares, Kelvin Antonio"]
[Black "Maksimovic, Bojan"]
[WhiteFideId "3906680"]
[BlackFideId "14408120"]
[WhiteElo "2193"]
[BlackElo "2448"]
[Result "0-1"]
[Round "06"]
[TimeControl "180+1"]
[Date "2022.05.03"]
[WhiteClock "0:00:12"]
[BlackClock "0:00:51"]

1. d4 {[%clk 0:03:00]}  Nf6 {[%clk 0:02:59]} 2. c4 {[%clk 0:03:00]}  g6 {[%clk 0:02:59]} 3. Nc3 {[%clk 0:02:59]}  d5 {[%clk 0:03:00]} 4. cxd5 {[%clk 0:02:57]}  Nxd5 {[%clk 0:03:01]} 5. e4 {[%clk 0:02:58]}  Nxc3 {[%clk 0:03:01]} 6. bxc3 {[%clk 0:02:59]}  Bg7 {[%clk 0:03:01]} 7. Qa4+ {[%clk 0:02:58]}  Nd7 {[%clk 0:02:54]} 8. Nf3 {[%clk 0:02:58]}  O-O {[%clk 0:02:54]} 9. Be2 {[%clk 0:02:58]}  c5 {[%clk 0:02:43]} 10. O-O {[%clk 0:02:57]}  a6 {[%clk 0:02:43]} 11. Be3 {[%clk 0:02:53]}  b5 {[%clk 0:02:42]} 12. Qa3 {[%clk 0:02:48]}  Bb7 {[%clk 0:02:42]} 13. Rfd1 {[%clk 0:02:29]}  Bxe4 {[%clk 0:02:36]} 14. dxc5 {[%clk 0:02:29]}  Qc7 {[%clk 0:02:36]} 15. Rac1 {[%clk 0:02:04]}  Ne5 {[%clk 0:02:24]} 16. Nxe5 {[%clk 0:01:54]}  Bxe5 {[%clk 0:02:25]} 17. c4 {[%clk 0:01:42]}  Bxh2+ {[%clk 0:02:17]} 18. Kf1 {[%clk 0:01:41]}  Bf4 {[%clk 0:02:13]} 19. cxb5 {[%clk 0:01:21]}  axb5 {[%clk 0:02:12]} 20. Qb4 {[%clk 0:01:12]}  Bxe3 {[%clk 0:02:09]} 21. fxe3 {[%clk 0:01:11]}  Bc6 {[%clk 0:02:06]} 22. Qf4 {[%clk 0:01:00]}  Qxf4+ {[%clk 0:02:02]} 23. exf4 {[%clk 0:01:01]}  Rxa2 {[%clk 0:02:02]} 24. Rb1 {[%clk 0:00:55]}  Rc8 {[%clk 0:01:55]} 25. Rdc1 {[%clk 0:00:51]}  Bxg2+ {[%clk 0:01:45]} 26. Kxg2 {[%clk 0:00:50]}  Rxe2+ {[%clk 0:01:45]} 27. Kf3 {[%clk 0:00:51]}  Re6 {[%clk 0:01:37]} 28. Rxb5 {[%clk 0:00:49]}  Kg7 {[%clk 0:01:35]} 29. Rc3 {[%clk 0:00:42]}  h5 {[%clk 0:01:35]} 30. Re3 {[%clk 0:00:37]}  Rxe3+ {[%clk 0:01:28]} 31. Kxe3 {[%clk 0:00:36]}  Kf6 {[%clk 0:01:28]} 32. Kd4 {[%clk 0:00:32]}  Kf5 {[%clk 0:01:26]} 33. Rb7 {[%clk 0:00:24]}  Kxf4 {[%clk 0:01:23]} 34. Rxe7 {[%clk 0:00:24]}  f5 {[%clk 0:01:23]} 35. Kd5 {[%clk 0:00:21]}  g5 {[%clk 0:01:21]} 36. c6 {[%clk 0:00:18]}  h4 {[%clk 0:01:21]} 37. Rh7 {[%clk 0:00:18]}  Kg3 {[%clk 0:01:20]} 38. Rh5 {[%clk 0:00:16]}  Kg4 {[%clk 0:01:18]} 39. Rh7 {[%clk 0:00:16]}  f4 {[%clk 0:01:17]} 40. Kd6 {[%clk 0:00:16]}  h3 {[%clk 0:01:15]} 41. Kd7 {[%clk 0:00:16]}  Ra8 {[%clk 0:01:03]} 42. c7 {[%clk 0:00:15]}  Kg3 {[%clk 0:01:02]} 43. Rh5 {[%clk 0:00:13]}  g4 {[%clk 0:00:59]} 44. Rb5 {[%clk 0:00:13]}  h2 {[%clk 0:00:53]} 45. Rb8 {[%clk 0:00:12]}  h1=Q {[%clk 0:00:51]} 46. c8=Q {[%clk 0:00:12]} 0-1


[Site "https://www.chess.com"]

[Event "Titled Tuesday Blitz May 03 Late 2022"]
[White "Simonovic, Miroslav"]
[Black "Piliczewski, Bogusz"]
[WhiteFideId "919152"]
[BlackFideId "1104144"]
[WhiteElo "2043"]
[BlackElo "1896"]
[Result "1-0"]
[Round "06"]
[TimeControl "180+1"]
[Date "2022.05.03"]
[WhiteClock "0:02:03"]
[BlackClock "0:00:41"]

1. d4 {[%clk 0:03:00]}  d5 {[%clk 0:02:55]} 2. Bg5 {[%clk 0:03:01]}  Nf6 {[%clk 0:02:52]} 3. Bxf6 {[%clk 0:03:01]}  exf6 {[%clk 0:02:51]} 4. e3 {[%clk 0:03:01]}  Bd6 {[%clk 0:02:50]} 5. a3 {[%clk 0:03:01]}  O-O {[%clk 0:02:50]} 6. c4 {[%clk 0:03:01]}  c6 {[%clk 0:02:47]} 7. cxd5 {[%clk 0:03:01]}  cxd5 {[%clk 0:02:45]} 8. Nc3 {[%clk 0:03:01]}  Be6 {[%clk 0:02:43]} 9. g3 {[%clk 0:02:58]}  Nd7 {[%clk 0:02:28]} 10. Bg2 {[%clk 0:02:57]}  Rc8 {[%clk 0:02:15]} 11. Nge2 {[%clk 0:02:57]}  Nb6 {[%clk 0:02:08]} 12. O-O {[%clk 0:02:56]}  Nc4 {[%clk 0:01:57]} 13. b4 {[%clk 0:02:55]}  a6 {[%clk 0:01:52]} 14. Nxd5 {[%clk 0:02:42]}  Bxg3 {[%clk 0:01:37]} 15. Nxf6+ {[%clk 0:02:37]}  Qxf6 {[%clk 0:01:36]} 16. hxg3 {[%clk 0:02:37]}  Rc7 {[%clk 0:01:24]} 17. Nf4 {[%clk 0:02:26]}  b5 {[%clk 0:01:13]} 18. Nd3 {[%clk 0:02:17]}  Rd8 {[%clk 0:01:02]} 19. Nc5 {[%clk 0:02:16]}  Bc8 {[%clk 0:01:00]} 20. Qe2 {[%clk 0:02:11]}  Re8 {[%clk 0:00:53]} 21. Rfe1 {[%clk 0:02:06]}  Rce7 {[%clk 0:00:52]} 22. Qf3 {[%clk 0:02:04]}  g6 {[%clk 0:00:41]} 23. Qxf6 {[%clk 0:02:03]} 1-0


[Site "https://www.chess.com"]

[Event "Titled Tuesday Blitz May 03 Late 2022"]
[White "Suarez Uriel, Adrian"]
[Black "Sokolovsky, Yahli"]
[WhiteFideId "22230874"]
[BlackFideId "2820242"]
[WhiteElo "2316"]
[BlackElo "1770"]
[Result "1-0"]
[Round "06"]
[TimeControl "180+1"]
[Date "2022.05.03"]
[WhiteClock "0:02:02"]
[BlackClock "0:01:23"]

1. e4 {[%clk 0:03:00]}  g6 {[%clk 0:02:58]} 2. d4 {[%clk 0:03:00]}  Bg7 {[%clk 0:02:58]} 3. Nc3 {[%clk 0:03:01]}  d6 {[%clk 0:02:59]} 4. Be3 {[%clk 0:02:58]}  a6 {[%clk 0:02:59]} 5. g4 {[%clk 0:02:57]}  b5 {[%clk 0:02:58]} 6. Bg2 {[%clk 0:02:50]}  Bb7 {[%clk 0:02:57]} 7. h4 {[%clk 0:02:50]}  h5 {[%clk 0:02:54]} 8. gxh5 {[%clk 0:02:50]}  Rxh5 {[%clk 0:02:54]} 9. Bf3 {[%clk 0:02:51]}  Rh8 {[%clk 0:02:55]} 10. h5 {[%clk 0:02:52]}  gxh5 {[%clk 0:02:53]} 11. Rxh5 {[%clk 0:02:48]}  Rxh5 {[%clk 0:02:52]} 12. Bxh5 {[%clk 0:02:49]}  Nf6 {[%clk 0:02:53]} 13. Bf3 {[%clk 0:02:32]}  e6 {[%clk 0:02:25]} 14. e5 {[%clk 0:02:31]}  Nd5 {[%clk 0:02:23]} 15. Nxd5 {[%clk 0:02:30]}  exd5 {[%clk 0:02:16]} 16. e6 {[%clk 0:02:30]}  fxe6 {[%clk 0:02:12]} 17. Bh5+ {[%clk 0:02:30]}  Kd7 {[%clk 0:02:10]} 18. Qg4 {[%clk 0:02:30]}  Bf6 {[%clk 0:01:59]} 19. Nh3 {[%clk 0:02:26]}  Kc6 {[%clk 0:01:32]} 20. Nf4 {[%clk 0:02:15]}  e5 {[%clk 0:01:31]} 21. dxe5 {[%clk 0:02:08]}  dxe5 {[%clk 0:01:23]} 22. Qe6+ {[%clk 0:02:02]} 1-0


[Site "https://www.chess.com"]

[Event "Titled Tuesday Blitz May 03 Late 2022"]
[White "Thybo, Jesper Sondergaard"]
[Black "Nozdrachev, Leonid"]
[WhiteFideId "1438832"]
[BlackFideId "24113433"]
[WhiteElo "2316"]
[BlackElo "2242"]
[Result "1-0"]
[Round "06"]
[TimeControl "180+1"]
[Date "2022.05.03"]
[WhiteClock "0:01:59"]
[BlackClock "0:01:30"]

1. Nf3 {[%clk 0:03:00]}  Nf6 {[%clk 0:02:58]} 2. b3 {[%clk 0:03:01]}  a5 {[%clk 0:02:56]} 3. Nc3 {[%clk 0:02:58]}  d5 {[%clk 0:02:53]} 4. e3 {[%clk 0:02:58]}  Nc6 {[%clk 0:02:52]} 5. Bb2 {[%clk 0:02:58]}  e5 {[%clk 0:02:51]} 6. Bb5 {[%clk 0:02:58]}  e4 {[%clk 0:02:51]} 7. Ne5 {[%clk 0:02:56]}  Bd7 {[%clk 0:02:50]} 8. Nxd7 {[%clk 0:02:54]}  Qxd7 {[%clk 0:02:51]} 9. Ne2 {[%clk 0:02:53]}  Bd6 {[%clk 0:02:44]} 10. Bxf6 {[%clk 0:02:52]}  gxf6 {[%clk 0:02:44]} 11. Nd4 {[%clk 0:02:53]}  Be5 {[%clk 0:02:42]} 12. c3 {[%clk 0:02:44]}  Bxd4 {[%clk 0:02:42]} 13. cxd4 {[%clk 0:02:44]}  O-O {[%clk 0:02:39]} 14. Qh5 {[%clk 0:02:42]}  Qe6 {[%clk 0:02:36]} 15. Bxc6 {[%clk 0:02:35]}  bxc6 {[%clk 0:02:37]} 16. O-O {[%clk 0:02:33]}  a4 {[%clk 0:02:26]} 17. b4 {[%clk 0:02:29]}  a3 {[%clk 0:02:26]} 18. f3 {[%clk 0:02:27]}  Rab8 {[%clk 0:02:13]} 19. fxe4 {[%clk 0:02:25]}  Qxe4 {[%clk 0:02:08]} 20. Rf4 {[%clk 0:02:22]}  Qe6 {[%clk 0:01:31]} 21. Rg4+ {[%clk 0:01:58]}  Kh8 {[%clk 0:01:30]} 22. Rh4 {[%clk 0:01:59]} 1-0


[Site "https://www.chess.com"]